Cogmind - Beta 14 @@@ ROGUE MODE // 2024.10.13 @ 02:13:03 Player: Destravous Result: Destroyed by P-60 Hacker with Shock Rifle Performance ------------- Evolutions (3) 1500 Regions Visited (7) 1400 Robots Destroyed (63) 315 Value Destroyed (2049) 2049 Prototype IDs (26) 520 Alien Tech Used (0) 0 Bonus (350) 350 TOTAL SCORE: 6134 Bonus ------- Follower Combat Kills 50 Aligned with FarCom 300 Cogmind --------- Core Integrity 0/700 Matter 228/300 Energy 100/100 System Corruption 27% Temperature Cool (0) Movement Core (250) Ox4 Location -7/Lower Caves Parts ------- > --- POWER (1) -------- (None) > --- PROPULSION (5) --- (None) > --- UTILITY (5) ------ Weight Redist. System Advanced Visual Processing Unit Hardened Medium Armor Plating Hacking Suite > --- WEAPON (2) ------- Missile Launcher > --- INVENTORY (5) ---- Superbattery (1500) Actuator Array Axe Axe Peak State ------------ > --- POWER ------------ Micro Nuclear Core > --- PROPULSION ------- Carbon-fiber Leg Carbon-fiber Leg Carbon-fiber Leg Gravmag System Gravmag System > --- UTILITY ---------- Medium Storage Unit Microactuators Microactuators Actuator Array Hacking Suite > --- WEAPON ----------- Katana Axe > --- INVENTORY -------- Superbattery Structural Scanner Terrain Scan Processor Actuator Array Improved Propulsion Shielding Arc Projector Axe [Rating: 44] Favorites ----------- Power Light Nuclear Core Engine Light Ion Engine Power Core Light Nuclear Core Propulsion Aluminum Leg Leg Aluminum Leg Hover Unit Gravmag System Flight Unit Flight Unit Utility Small Storage Unit Device Structural Scanner Storage Small Storage Unit Processor Transport Network Coupler Hackware Hacking Suite Protection Hardened Medium Armor Plating Weapon Improved EM Pulse Cannon Energy Gun Cooled Pulse Rifle Energy Cannon Improved EM Pulse Cannon Ballistic Gun Assault Rifle Ballistic Cannon Improved Light Cannon Launcher Rocket Launcher Special Weapon Welding Torch Slashing Weapon Katana Build | -11 -10 -10 -10 -9 -8 -7 -7 ------- Run | Yrd Mat Min Exi Min Mat Fac Low Slots Evolved 6 | . . . . . 4 2 . Power . | . . . . . . . . Propulsion 3 | . . . . . 1 2 . Utility 3 | . . . . . 3 . . Weapon . | . . . . . . . . Parts Attached 108 | 1 3 10 . 10 18 49 17 Power 11 | 1 . 1 . 1 3 5 . Engine 4 | 1 . . . . . 3 . Core 7 | . . 1 . 1 3 2 . Reactor . | . . . . . . . . Propulsion 35 | . . 5 . 5 8 14 3 Treads . | . . . . . . . . Leg 22 | . . 3 . 3 5 8 3 Wheel . | . . . . . . . . Hover 2 | . . . . . . 2 . Flight 11 | . . 2 . 2 3 4 . Utility 22 | . 1 . . 2 2 11 6 Device 13 | . 1 . . 2 . 7 3 Storage 5 | . . . . . 2 2 1 Processor 2 | . . . . . . 1 1 Hackware 1 | . . . . . . 1 . Protection 1 | . . . . . . . 1 Artifact . | . . . . . . . . Weapon 40 | . 2 4 . 2 5 19 8 Energy Gun 6 | . . . . . . 5 1 Energy Cannon 7 | . . . . . 3 4 . Ballistic Gun 2 | . 1 1 . . . . . Ballistic Cannon 1 | . . . . 1 . . . Launcher 6 | . . . . 1 1 1 3 Special Weapon 5 | . 1 3 . . 1 . . Impact Weapon . | . . . . . . . . Slashing Weapon 13 | . . . . . . 9 4 Piercing Weapon . | . . . . . . . . Special Melee Weapon . | . . . . . . . . Unidentified Prototypes 3 | . . . . 1 . 2 . Corrupted Parts 7 | . . . . . 3 4 . System Corruption 27 | . . . . . 9 18 . Parts Lost 39 | . . 5 . 1 1 17 15 Power 6 | . . 1 . . 1 3 1 Propulsion 14 | . . . . . . 7 7 Utility 4 | . . . . . . 1 3 Weapon 15 | . . 4 . 1 . 6 4 Highest Loss Streak 9 | . . 3 . 1 1 6 9 To Critical Strikes . | . . . . . . . . Average Slot Usage (%) 75 | . 84 83 71 72 68 77 53 Engine 2 | . 14 2 . . . 1 . Core 3 | . . 7 . 3 4 3 3 Leg 17 | . 28 22 . 12 14 19 10 Hover 1 | . . . . . . 1 4 Flight 5 | . . 5 28 15 12 1 . Device 13 | . . 14 14 14 9 17 12 Storage 11 | . 14 14 14 14 11 10 4 Hackware 2 | . . . . . . 3 7 Energy Gun 3 | . 14 6 . . . 3 . Energy Cannon 2 | . . . . . 13 3 . Ballistic Gun 1 | . 10 5 . . . . . Special Weapon 2 | . 2 5 14 6 1 . . Slashing Weapon 3 | . . . . . . 7 7 Peak Build Rating 44 | 6 6 9 6 14 27 42 44 Average Rating 21 | 6 5 6 5 8 18 33 22 On Entrance 10 | 6 6 6 5 6 6 13 37 Naked Turns . | . . . . . . . . Heaviest Build 35 | 14 12 15 7 15 25 35 30 Greatest Support 50 | 20 20 20 8 20 30 50 45 Greatest Overweight (x) 3 | . . . . . 2 3 2 Average Overweight (x) . | . . . . . . . . Largest Inventory Capacity 10 | 8 8 8 8 8 8 10 10 Average Capacity 8 | 8 8 8 8 8 8 9 7 Most Carried 9 | 5 6 8 8 8 8 8 9 Average Carried 6 | 1 2 7 8 7 7 5 6 Final Capacity 10 | 8 8 8 8 8 8 10 5 Final Carried 8 | 1 6 8 8 8 8 8 4 Class Distribution -------------------- 39% | Scavenger-Mutant 38% | Mutant 20% | Scavenger-Gladiator Dominant Class ---------------- Mutant | -10/Materials Scavenger-Mutant | -10/Mines Mutant | -10/Exiles Mutant | -9/Mines Mutant | -8/Materials Scavenger-Mutant | -7/Factory Mutant | -7/Lower Caves Resources | -11 -10 -10 -10 -9 -8 -7 -7 ----------- Run | Yrd Mat Min Exi Min Mat Fac Low Matter Collected 1481 | 210 57 138 . 143 162 588 183 Remotely . | . . . . . . . . Salvage Created 2621 | . 205 237 . 76 258 1473 372 Parts 139 | . 16 20 . 2 21 68 12 Haulers Intercepted 3 | . . . . . . 3 . Recyclers Shooed . | . . . . . . . . Parts Field Recycled . | . . . . . . . . Retrieved Matter . | . . . . . . . . Parts Self-Destructed 3 | . . . . . . . 3 Prevented . | . . . . . . . . Kills | -11 -10 -10 -10 -9 -8 -7 -7 ------- Run | Yrd Mat Min Exi Min Mat Fac Low Combat Hostiles Destroyed 49 | . 6 5 . 2 10 20 6 Melee 14 | . . . . . . 8 6 Guns 13 | . 6 2 . . . 5 . Cannons 13 | . . 1 . 2 6 4 . AOE 5 | . . 2 . . 3 . . Classes Destroyed 12 | . 3 . . . 1 7 1 Worker 5 | . . . . . . 5 . Builder 4 | . 1 1 . . 1 1 . Hauler 3 | . . . . . . 3 . Recycler 1 | . . . . . . 1 . Watcher 1 | . . . . . 1 . . Swarmer 10 | . 3 . . . 7 . . Grunt 26 | . 3 5 . 2 3 12 1 Duelist 1 | . . . . . . 1 . Sentry 3 | . . . . . . 3 . Hunter 1 | . . . . . . 1 . Programmer 3 | . . . . . . 3 . Thug 4 | . . . . . . . 4 Mutant 1 | . . . . . . . 1 Best Kill Streak 6 | . 3 2 . 2 6 5 4 Combat Bots Only 4 | . 3 2 . 2 4 3 4 Max Kills in Single Turn 2 | . 1 2 . 1 2 1 1 Gunslinging . | . . . . . . . . Exploded 2 | . . 2 . . 1 . . Melee 1 | . . . . . . 1 1 Uniques/NPCs Destroyed . | . . . . . . . . Combat | -11 -10 -10 -10 -9 -8 -7 -7 -------- Run | Yrd Mat Min Exi Min Mat Fac Low Hostile Shots Fired 528 | . 28 67 . 28 65 253 87 Missed 173 | . 15 17 . 13 19 95 14 Damage Taken 4592 | . 130 613 . 203 481 1856 1309 Core 1032 | . . 164 . 58 109 333 368 Absorbed by Shields 178 | . . . . . . 178 . Regen/Repaired (Parts) 9 | . . . . . . 9 . Core Remaining (%) 63 | 100 . . . 11 80 . . Volleys Fired 161 | . 22 30 . 13 28 62 6 Largest 2 | . 2 2 . 1 2 2 1 Hottest 169 | . 140 100 . 39 169 138 55 Shots Fired 240 | . 42 44 . 13 46 89 6 Gun 127 | . 38 32 . . . 55 2 Cannon 75 | . . . . 12 30 33 . Launcher 11 | . . . . . 6 1 4 Special 27 | . 4 12 . 1 10 . . Kinetic 42 | . 16 14 . 12 . . . Thermal 69 | . 4 12 . 1 10 42 . Explosive 11 | . . . . . 6 1 4 Electromagnetic 118 | . 22 18 . . 30 46 2 Robot Hit Streak 18 | . 4 7 . 3 9 18 1 Robot Miss Streak 6 | . 3 4 . 2 6 3 3 Penetration Max . | . . . . . . . . Secondary Targets . | . . . . . . . . Shots Hit Robots 191 | . 19 26 . 7 17 100 22 Core Hits 88 | . 10 12 . 4 14 35 13 Critical Kills . | . . . . . . . . Critical Parts Destroyed . | . . . . . . . . Critical Strikes 9 | . . . . 1 1 6 1 Burn 1 | . . . . . . 1 . Blast 1 | . . . . 1 . . . Corrupt 1 | . . . . . 1 . . Sever 6 | . . . . . . 5 1 Melee Attacks 79 | . . . . . . 53 26 Impact . | . . . . . . . . Slashing 79 | . . . . . . 53 26 Piercing . | . . . . . . . . Sneak Attacks 9 | . . . . . . 9 . Combat Hostiles . | . . . . . . . . Follow-up Attacks 7 | . . . . . . 5 2 Damage Inflicted 5785 | . 259 364 . 143 894 3402 723 Guns 1709 | . 259 219 . . . 1220 11 Cannons 1348 | . . . . 143 497 708 . Explosions 514 | . . 72 . . 391 . 51 Melee 2132 | . . . . . . 1471 661 Ramming 35 | . . 26 . . 6 3 . Kinetic 386 | . 134 109 . 143 . . . Thermal 1222 | . . 119 . . . 1103 . Explosive 442 | . . . . . 391 . 51 Electromagnetic 1568 | . 125 110 . . 497 825 11 Impact . | . . . . . . . . Slashing 2132 | . . . . . . 1471 661 Piercing . | . . . . . . . . Highest Corruption 27 | . . . . . 9 25 27 Average Corruption 14 | . . . . . 5 13 25 Corruption Purged . | . . . . . . . . Corruption Blocked . | . . . . . . . . Effects 88 | . . . . . 7 60 21 Message Errors 16 | . . . . . . 12 4 Matter Fused 23 | . . . . . 2 14 7 Heat Flow Errors 6 | . . . . . . 5 1 Energy Discharges 10 | . . . . . 2 6 2 Parts Rejected 3 | . . . . . . 2 1 Parts Fused 4 | . . . . . 1 3 . Data Loss (minor) 13 | . . . . . 1 9 3 Data Loss (major) 2 | . . . . . 1 1 . Misfires 1 | . . . . . . 1 . Misdirections 7 | . . . . . . 4 3 Weapon Failures 3 | . . . . . . 3 . Overload Shots 30 | . . . . . . 30 . Effects 2 | . . . . . . 2 . Energy Bleed 1 | . . . . . . 1 . Short Circuit 1 | . . . . . . 1 . Overflow Damage 122 | . . . . . 54 68 . Projectiles 18 | . . . . . 10 8 . Explosions 44 | . . . . . 44 . . Melee 60 | . . . . . . 60 . Knockbacks 4 | . . . . 4 . . . Impact . | . . . . . . . . Kinetic 4 | . . . . 4 . . . Secondary . | . . . . . . . . Self-Inflicted Damage 34 | . . . . . 3 . 31 Shots 1 | . . . . . . . 1 Rammed 2 | . . . . . 2 . . Targets Rammed 15 | . . 12 . . 2 1 . Kicked 13 | . . 12 . . . 1 . Crushed . | . . . . . . . . Highest Temperature 513 | . 104 57 . 24 513 144 140 Average Temperature 78 | . 31 24 . 9 135 49 77 Received Heat Transfer 2164 | . 63 555 . 114 180 605 647 Effects 2 | . . . . . 2 . . Energy Bleed 1 | . . . . . 1 . . Damage (major) 1 | . . . . . 1 . . Siege Activations . | . . . . . . . . Robots Corrupted 4 | . . . . . 1 3 . Combat Hostiles 4 | . . . . . 1 3 . Parts Fried 3 | . . . . . . 3 . Impact Corruptions . | . . . . . . . . Robots Melted . | . . . . . . . . Combat Hostiles . | . . . . . . . . Parts Melted 3 | . . . . . . 3 . Heat Transferred 1847 | . . 325 . . . 1522 . Parts Sabotaged . | . . . . . . . . Parts Stolen . | . . . . . . . . Parts Stripped . | . . . . . . . . Power Chain Reactions 1 | . . 1 . . . . . Alert | -11 -10 -10 -10 -9 -8 -7 -7 ------- Run | Yrd Mat Min Exi Min Mat Fac Low Peak Influence 375 | . 188 201 . 183 375 289 . Initial 165 | . . 73 . . 66 165 . Average 136 | . 131 145 . 103 216 129 . Maximum Alert Level 1 | . . 1 . . 1 1 . Low Security (%) 81 | 100 100 81 . 100 55 77 . Level 1 18 | . . 18 . . 44 22 . Level 2 . | . . . . . . . . Level 3 . | . . . . . . . . Level 4 . | . . . . . . . . Level 5 . | . . . . . . . . High Security . | . . . . . . . . Max Security . | . . . . . . . . Squads Dispatched 13 | . 1 . . . 4 8 . Investigation 6 | . . . . . 1 5 . Extermination 2 | . . . . . . 2 . Reinforcement 5 | . 1 . . . 3 1 . Assault . | . . . . . . . . Garrison . | . . . . . . . . Intercept . | . . . . . . . . Searches Triggered . | . . . . . . . . Construction Impeded 2 | . . . . . 2 . . Haulers Reinforced 1 | . . . . . . 1 . Active Scanning Responses . | . . . . . . . . Cargo Convoy Interrupts . | . . . . . . . . Stealth | -11 -10 -10 -10 -9 -8 -7 -7 --------- Run | Yrd Mat Min Exi Min Mat Fac Low Distress Signals 3 | . 1 . . . 1 1 . Communications Jammed . | . . . . . . . . Distress Signals . | . . . . . . . . Times Spotted 113 | . 11 28 . 12 17 34 11 Peak Tracking Total 20 | . 6 20 . 5 5 5 4 Tactical Retreats 16 | . . 6 . 3 1 4 2 Traps | -11 -10 -10 -10 -9 -8 -7 -7 ------- Run | Yrd Mat Min Exi Min Mat Fac Low Traps Triggered 1 | . . . . . . 1 . Indirectly . | . . . . . . . . Trap Hack Attempts . | . . . . . . . . Triggered . | . . . . . . . . Disarmed . | . . . . . . . . Reprogrammed . | . . . . . . . . Reused . | . . . . . . . . Traps Extracted . | . . . . . . . . Installed . | . . . . . . . . Triggered . | . . . . . . . . Machines | -11 -10 -10 -10 -9 -8 -7 -7 ---------- Run | Yrd Mat Min Exi Min Mat Fac Low Machines Disabled 4 | . . . . . . 3 1 Max in Single Turn 2 | . . . . . . 2 1 Machines Repaired . | . . . . . . . . Machines Dismantled . | . . . . . . . . Machines Sabotaged . | . . . . . . . . Overloaded Fab Kills . | . . . . . . . . Hacking | -11 -10 -10 -10 -9 -8 -7 -7 --------- Run | Yrd Mat Min Exi Min Mat Fac Low Machines Accessed 15 | . 2 . 2 . 2 9 . Terminals 10 | . 2 . . . 2 6 . Fabricators . | . . . . . . . . Repair Stations 2 | . . . . . . 2 . Recycling Units 1 | . . . . . . 1 . Scanalyzers . | . . . . . . . . Garrison Access . | . . . . . . . . Total Hacks 41 | . 3 . 9 . 7 22 . Successful 22 | . 1 . 9 . 3 9 . Failed 19 | . 2 . . . 4 13 . Catastrophic 7 | . 1 . . . 3 3 . Database Lockouts . | . . . . . . . . Manual 27 | . 2 . 1 . 7 17 . Terminals 26 | . 3 . . . 7 16 . Fabricators . | . . . . . . . . Repair Stations 5 | . . . . . . 5 . Recycling Units 1 | . . . . . . 1 . Scanalyzers . | . . . . . . . . Garrison Access . | . . . . . . . . Terminal Hacks 12 | . 1 . 9 . 1 1 . Record 8 | . . . 8 . . . . Branch Access Points 1 | . . . . . 1 . . Unreport Threat 1 | . . . . . . 1 . Zone Layout 1 | . 1 . . . . . . Derelict Proto ID Bank 1 | . . . 1 . . . . Fabricator Hacks . | . . . . . . . . Repair Station Hacks 3 | . . . . . . 3 . Scan Component 2 | . . . . . . 2 . Repair 1 | . . . . . . 1 . Recycling Unit Hacks . | . . . . . . . . Scanalyzer . | . . . . . . . . Garrison Access Hacks . | . . . . . . . . Unauthorized Hacks 7 | . . . . . 2 5 . Terminals 6 | . . . . . 2 4 . Botnet 6 | . . . . . 2 4 . Fabricators . | . . . . . . . . Repair Stations . | . . . . . . . . Recycling Units 1 | . . . . . . 1 . Tunnel 1 | . . . . . . 1 . Scanalyzers . | . . . . . . . . Garrison Access . | . . . . . . . . Data Cores Recovered . | . . . . . . . . Used . | . . . . . . . . Hacking Detections 10 | . 1 . . . 2 7 . Full Trace Events 5 | . . . . . 1 4 . Feedback Events . | . . . . . . . . Feedback Blocked . | . . . . . . . . Robot Schematics Acquired . | . . . . . . . . Robots Built . | . . . . . . . . Authchips . | . . . . . . . . Time . | . . . . . . . . Total Robot Build Rating . | . . . . . . . . Part Schematics Acquired . | . . . . . . . . Parts Built . | . . . . . . . . Authchips . | . . . . . . . . Time . | . . . . . . . . Total Part Build Rating . | . . . . . . . . Parts Repaired 1 | . . . . . . 1 . Time 61 | . . . . . . 61 . Parts Recycled . | . . . . . . . . Recycled Matter . | . . . . . . . . Retrieved Matter . | . . . . . . . . Retrieved Components . | . . . . . . . . Parts Scanalyzed . | . . . . . . . . Part Schematics Acquired . | . . . . . . . . Parts Damaged . | . . . . . . . . Bothacking | -11 -10 -10 -10 -9 -8 -7 -7 ------------ Run | Yrd Mat Min Exi Min Mat Fac Low Used RIF Installer . | . . . . . . . . Robots Hacked . | . . . . . . . . Non-combat . | . . . . . . . . Combat . | . . . . . . . . Robot Hacks Applied . | . . . . . . . . Relay Couplers Released . | . . . . . . . . Fabnet Peak Effective % . | . . . . . . . . Robots Rewired . | . . . . . . . . Allies Hacked . | . . . . . . . . Hacks Repelled . | . . . . . . . . Allies | -11 -10 -10 -10 -9 -8 -7 -7 -------- Run | Yrd Mat Min Exi Min Mat Fac Low Total Allies 5 | . . . . 2 . 3 . Largest Group 3 | . . . . 2 . 3 . Highest-Rated Group 93 | . . . . 49 . 93 . Highest-Rated Ally 31 | . . . . 31 . 31 . Total Orders . | . . . . . . . . Ally Attacks 25 | . . . . 7 . 18 . Total Damage 271 | . . . . 85 . 186 . Kills 2 | . . . . 2 . . . Allies Corrupted . | . . . . . . . . Allies Melted 1 | . . . . . . 1 . Intel | -11 -10 -10 -10 -9 -8 -7 -7 ------- Run | Yrd Mat Min Exi Min Mat Fac Low Robot Analysis Total . | . . . . . . . . Derelict Logs Recovered 3 | . . 1 . 1 . . 1 Drone Launches . | . . . . . . . . Drone Recoveries . | . . . . . . . . Exploration | -11 -10 -10 -10 -9 -8 -7 -7 ------------- Run | Yrd Mat Min Exi Min Mat Fac Low Turns Passed 3969 | 18 360 490 242 375 318 1799 367 Spaces Moved 3331 | 11 232 488 648 540 97 977 338 Core 235 | . . . . . . . 235 Treads . | . . . . . . . . Legs 1522 | 11 232 239 . 111 68 768 93 Wheels . | . . . . . . . . Hover 172 | . . . . . . 162 10 Flight 1402 | . . 249 648 429 29 47 . Fastest Speed 37 | 120 120 37 37 37 37 117 50 Average Speed 85 | 120 120 77 37 54 102 133 76 Slowest Speed 260 | 120 120 120 37 120 260 260 190 Overloaded Moves . | . . . . . . . . Propulsion Burnouts . | . . . . . . . . Robots Hopped 9 | . . 8 . 1 . . . Cave-ins Triggered . | . . . . . . . . Exploration Rate (%) 50 | 2 53 88 91 87 15 30 38 Regions Visited 7 Branch Regions 4 Pre-discovered Areas 3 | . . . 1 . . 1 1 Known Exits Taken . | . . . . . . . . Unknown Exits Taken 7 | 1 1 1 1 1 1 1 . Scrap Searched 4 | . . . . 2 . . 2 Spaces Dug 17 | . 4 . . . 10 3 . Terrain Destroyed 128 | . 4 3 . . 60 10 51 Melee 1 | . . . . . . 1 . Projectile 19 | . 4 . . . 10 5 . AOE 108 | . . 3 . . 50 4 51 Terrain Rammed . | . . . . . . . . Walls Destroyed . | . . . . . . . . Machines Disabled . | . . . . . . . . Actions | -11 -10 -10 -10 -9 -8 -7 -7 --------- Run | Yrd Mat Min Exi Min Mat Fac Low Total 4067 | 18 262 536 650 608 250 1323 420 Wait 331 | . 1 3 1 37 93 170 26 Move 3309 | 10 231 474 647 537 96 976 338 Hop 6 | . . 5 . 1 . . . Pick Up 22 | 1 4 1 1 1 1 11 2 Fast Attach 45 | . 1 2 . 4 6 24 8 Attach 29 | . . 2 . . 6 14 7 Detach 18 | . 1 . . 3 7 4 3 Swap 34 | 1 2 6 . 6 6 11 2 Drop 32 | 6 . 1 1 6 5 8 5 Fire 161 | . 22 30 . 13 28 62 6 Melee 65 | . . . . . . 42 23 Ram 2 | . . . . . 2 . . Kick 13 | . . 12 . . . 1 . Crush . | . . . . . . . . Escape Stasis . | . . . . . . . . Rewire . | . . . . . . . . Trap . | . . . . . . . . Miscellaneous . | . . . . . . . . Route ------- -11/Scrapyard -10/Materials (discovered 3 exits: [*Mat] / [*Min x2]) -10/Mines (discovered 2 exits: [*Mat] / *Exi) -10/Exiles -9/Mines (discovered 2 exits: *Mat x2) -8/Materials -7/Factory -7/Lower Caves History --------- Turn | Location | Event 4 | -11/Scrapyard | Discovered new exit (range 1) 19 | -11/Scrapyard | Entered Materials 162 | -10/Materials | Discovered new exit (range 14) 231 | -10/Materials | Discovered new exit (range 15) 259 | -10/Materials | Discovered new exit (range 14) 312 | -10/Materials | Build established: Mutant 379 | -10/Materials | Entered Mines 391 | -10/Mines | Met a Derelict bent on vengeance 520 | -10/Mines | Learned Materials interactive machine intel 646 | -10/Mines | Lost 3 parts (3w) 656 | -10/Mines | Assembled infested the area 661 | -10/Mines | Assisted by a Guerilla fighting off Assembled 737 | -10/Mines | Core integrity fell below 50% 800 | -10/Mines | Discovered new exit (range 9) 868 | -10/Mines | Deemed a non-threat by the Exiles lab entrance 868 | -10/Mines | Discovered new exit (range 5) 869 | -10/Mines | Entered Exiles 879 | -10/Exiles | Met 8R-AWN 885 | -10/Exiles | Met EX-HEX 905 | -10/Exiles | Met EX-DEC 917 | -10/Exiles | Learned location of Zion (-7) 931 | -10/Exiles | Discovered new exit (range 14) 958 | -10/Exiles | Met EX-BIN 982 | -10/Exiles | Aligned with FarCom system 983 | -10/Exiles | Given EX-Vault access code 992 | -10/Exiles | Opened EX-Vault 1003 | -10/Exiles | Warned to stay clear of 0b10 Research branches 1012 | -10/Exiles | Found Superbattery 1053 | -10/Exiles | Visited The Gauntlet 1111 | -10/Exiles | Left Exiles lab with Superbattery 1111 | -10/Exiles | Entered Mines 1120 | -9/Mines | Learned 2 Materials zone layouts 1202 | -9/Mines | Found a damaged Exp. Sensor Array with a note attached 1204 | -9/Mines | Found Prototype Device 1204 | -9/Mines | Identified Exp. Sensor Array 1287 | -9/Mines | Discovered new exit (range 14) 1430 | -9/Mines | Core integrity fell below 20% 1481 | -9/Mines | Received a Rocket Launcher from a helpful Derelict 1484 | -9/Mines | Discovered new exit (range 6) 1486 | -9/Mines | Entered Materials 1486 | -8/Materials | Evolved 4 slots: Propulsion x1, Utility x3 1488 | -8/Materials | Loaded intel: 19 interactive machine locations 1798 | -8/Materials | Discovered new exit (range 6) 1804 | -8/Materials | Entered Factory 1804 | -7/Factory | Evolved 2 slots: Propulsion x2 1830 | -7/Factory | Allied Derelicts emerged from ambush trap array 1924 | -7/Factory | Lost 3 allies 1927 | -7/Factory | Lost 3 parts (1n2w) 1961 | -7/Factory | Build established: Scavenger-Mutant 2141 | -7/Factory | Repaired Broken Imp. Shield Generator 2631 | -7/Factory | System corruption reached 10% 2783 | -7/Factory | Lost 6 parts (1p2n3w) 3263 | -7/Factory | Build established: Scavenger-Gladiator 3324 | -7/Factory | Discovered new exit (range 16) 3389 | -7/Factory | Lost 3 parts (2n1u) 3603 | -7/Factory | Entered Lower Caves 3611 | -7/Lower Caves | Core integrity fell below 50% 3612 | -7/Lower Caves | Ambushed by wild Derelicts 3665 | -7/Lower Caves | Lost 3 parts (2n1w) 3687 | -7/Lower Caves | Attacked by a delusional Derelict stockpiling parts 3737 | -7/Lower Caves | Lost 3 parts (2n1u) 3813 | -7/Lower Caves | Core integrity fell below 20% 3841 | -7/Lower Caves | Lost 9 parts (1p3n2u3w) 3970 | -7/Lower Caves | Destroyed by P-60 Hacker with Shock Rifle Last Messages --------------- 03886_ Searching scrap... 03886_ Found Unknown Protection. 03886_ Found Adv. Visual Processing Unit. 03886_ Found Missile Launcher. 03886_ Found Weight Redist. System. 03886_ Found 63 Matter. 03887_ Acquired 20 matter. 03887_ Acquired Weight Redist. System. 03888_ AB%CU5:DUDV5T R6NJJNX